bitfinex/quotes_ETHUSD_20260119
["timestamp","ask_amount","ask_price","bid_price","bid_amount"]
[1768785141084,0.492,3218.6,3218.0,0.002]
[1768785141511,0.492,3218.6,3218.0,12.29807229]
[1768785141714,0.492,3218.6,3218.0,0.002]
[1768785141916,12.1822718,3218.5,3218.0,0.002]
[1768785142093,15.28935302,3218.5,3218.0,0.002]
[1768785142289,3.10708122,3218.5,3218.0,0.002]
[1768785142691,19.69234531,3218.5,3218.0,0.002]
[1768785142907,12.8075889,3218.4,3218.0,0.002]
[1768785143965,6.88475641,3218.5,3218.0,0.002]
[1768785143966,0.67059397,3218.5,3218.0,0.002]
[1768785144121,0.492,3218.6,3218.0,0.002]
[1768785144510,3.59897106,3218.6,3218.0,0.002]
[1768785144917,12.8085889,3218.9,3218.0,0.002]
[1768785145137,12.8085889,3218.9,3218.0,12.8488732]
[1768785145138,3.59874785,3218.8,3218.0,12.8488732]
[1768785145742,0.492,3218.7,3218.0,12.8488732]
[1768785146138,15.91528508,3218.9,3218.1,3.10742363]
[1768785146339,0.001,3218.9,3218.1,15.95429683]
[1768785146540,0.492,3218.8,3218.1,15.95429683]
[1768785147116,0.001,3218.9,3218.1,15.95429683]
[1768785147346,0.492,3218.8,3218.1,15.95429683]
[1768785148144,3.10674948,3218.8,3218.1,15.95429683]
[1768785148331,6.70549896,3218.8,3218.1,12.8468732]
[1768785148536,3.90952443,3218.8,3218.1,12.8468732]
[1768785149149,3.90952443,3218.8,3218.1,15.95428779]
[1768785149340,0.001,3218.9,3218.1,15.95428779]
[1768785149562,0.001,3218.9,3218.2,12.8468732]
[1768785149720,0.001,3218.9,3218.2,13.3308732]
[1768785150320,0.001,3218.9,3218.4,12.8468732]
[1768785152553,0.001,3218.9,3218.6,12.8468732]
[1768785152850,6.31,3220.0,3218.6,12.8468732]
[1768785152851,12.8075889,3219.8,3218.6,12.8468732]
[1768785153066,10.09,3220.4,3218.6,13.3308732]
[1768785153067,12.8075889,3220.3,3218.6,13.3308732]
[1768785153293,0.492,3220.2,3218.6,13.3308732]
[1768785154045,12.8075889,3220.1,3218.7,0.484]
[1768785154253,12.8075889,3220.1,3218.8,12.8468732]
[1768785154559,15.913121,3220.1,3219.0,12.8468732]
[1768785155359,12.8075889,3220.1,3219.0,12.8468732]
[1768785155754,15.91308848,3220.1,3219.0,12.8468732]
[1768785156852,15.91308848,3220.1,3219.2,12.8468732]
[1768785157361,16.40508848,3220.1,3219.2,12.8468732]
[1768785158256,12.7939145,3220.0,3219.2,12.8468732]
[1768785159043,15.89956494,3220.0,3219.2,15.95322195]
[1768785159242,2.44305045,3220.1,3219.3,12.30622851]
[1768785159558,0.492,3220.1,3219.3,12.30622851]
[1768785160230,13.2859145,3220.1,3219.1,0.484]
[1768785160439,13.2859145,3220.1,3218.9,3.10664986]
[1768785160631,13.2859145,3220.1,3218.0,3.10948908]
[1768785160632,0.492,3220.0,3219.3,12.30622851]
[1768785160851,12.7939145,3220.8,3219.3,12.30622851]
[1768785161045,0.492,3220.4,3219.3,12.30622851]
[1768785161356,12.7939145,3220.6,3219.5,12.30622851]
[1768785161558,0.492,3220.5,3219.5,12.30622851]
[1768785161761,12.7939145,3220.5,3219.5,12.30622851]
[1768785161926,12.7939145,3220.3,3219.1,12.79022851]
[1768785162130,12.7939145,3220.3,3218.7,12.30622851]
[1768785162351,12.7939145,3220.3,3218.6,3.10688465]
[1768785162579,12.7939145,3220.3,3218.5,0.484]
[1768785163063,2.39239971,3220.4,3218.6,3.10693452]
[1768785163064,9.31619154,3220.2,3218.6,3.10693452]
[1768785163385,12.7939145,3220.1,3218.6,3.10693452]
[1768785164010,0.492,3220.0,3218.6,3.10693452]
[1768785164157,12.7939145,3219.9,3218.6,3.10693452]
[1768785164807,12.7939145,3219.9,3218.4,12.30622851]
[1768785165002,12.7939145,3219.7,3218.4,3.10709401]
[1768785165307,1.32859145,3219.8,3218.2,3.10732551]
[1768785165308,12.7939145,3219.3,3218.2,3.10732551]
[1768785165612,12.7939145,3219.3,3218.5,0.002]
[1768785165957,13.2859145,3219.2,3218.5,0.002]
[1768785166697,12.7939145,3219.7,3218.5,12.30822851]
[1768785166866,1.32859145,3219.8,3218.7,12.30622851]
[1768785166867,3.59781078,3219.8,3218.7,12.30622851]
[1768785167057,16.39172528,3219.8,3218.9,3.10665134]
[1768785167257,16.39172528,3219.8,3218.8,12.33729598]
[1768785167258,12.7939145,3219.7,3218.7,3.1068122]
[1768785167659,12.7939145,3219.7,3218.6,0.484]
[1768785167862,12.7939145,3219.7,3218.6,15.89710071]
[1768785168058,12.7939145,3219.5,3218.6,0.484]
[1768785168301,12.7939145,3219.5,3218.6,3.59091375]
[1768785168302,0.492,3219.4,3218.6,3.59091375]
[1768785168598,0.492,3219.4,3218.5,0.002]
[1768785168599,13.2859145,3219.4,3218.5,0.002]
[1768785169291,12.7939145,3219.2,3218.5,0.002]
[1768785171477,0.492,3219.4,3218.5,12.30822851]
[1768785172201,5.05575698,3219.6,3218.5,12.30822851]
[1768785172504,0.492,3219.5,3218.5,12.30822851]
[1768785172868,1.94975361,3219.6,3218.5,12.30822851]
[1768785173196,0.492,3219.5,3218.5,12.30822851]
[1768785173395,0.492,3219.5,3218.7,12.96795102]
[1768785173899,12.28811521,3219.9,3218.9,12.96795102]
[1768785174278,12.78011521,3219.9,3218.9,12.96795102]
[1768785174497,0.001,3220.0,3219.1,12.96795102]
[1768785175489,0.001,3220.0,3219.3,12.96795102]
[1768785176862,0.001,3220.0,3219.5,12.96795102]
[1768785177100,0.001,3220.0,3219.7,12.96795102]
[1768785177468,0.001,3220.0,3219.7,16.07375006]
[1768785177670,0.492,3220.5,3219.7,16.07375006]
[1768785178104,0.492,3220.5,3219.7,19.17962948]
[1768785178310,12.28811521,3220.6,3219.8,12.96795102]
[1768785179610,12.28811521,3220.6,3219.8,16.07369157]
[1768785180176,13.19438508,3221.3,3219.9,12.96795102]
[1768785180177,12.28811521,3220.9,3219.9,12.96795102]
[1768785180404,12.78011521,3220.7,3219.5,12.96795102]
[1768785180781,12.78011521,3220.7,3219.3,0.484]
[1768785181337,12.78011521,3220.7,3219.4,3.10610358]
[1768785181613,12.78011521,3220.7,3219.3,0.484]
[1768785181614,12.28811521,3220.3,3219.3,0.484]
[1768785181789,6.21040864,3220.4,3218.9,3.10659315]
[1768785181790,12.28811521,3220.1,3218.9,3.10659315]
[1768785182129,12.28811521,3220.1,3218.8,0.002]
[1768785182130,12.28811521,3220.1,3219.3,16.07420419]
[1768785182293,6.21040864,3220.4,3219.3,16.07420419]
[1768785182294,0.492,3220.0,3219.3,16.07420419]
[1768785182475,12.28811521,3220.3,3219.4,12.96795102]
[1768785182678,13.82744149,3220.3,3219.4,12.96795102]
[1768785183113,14.31944149,3220.3,3219.4,12.96795102]
[1768785183620,12.28811521,3220.2,3219.4,12.96795102]
[1768785183911,12.28811521,3220.2,3219.1,0.484]
[1768785184613,12.28811521,3220.2,3218.8,0.002]
[1768785184821,12.28811521,3220.0,3218.8,0.002]
[1768785185629,12.28811521,3219.8,3218.8,0.002]
[1768785185939,6.21137302,3219.9,3218.8,0.002]
[1768785185940,12.28811521,3219.6,3218.8,0.002]
[1768785186151,12.28811521,3219.6,3218.1,0.484]
[1768785186588,12.28811521,3219.4,3218.0,0.002]
[1768785187412,1.27801152,3219.5,3218.6,16.07483625]
[1768785187590,0.492,3219.5,3218.6,16.07483625]
[1768785187792,3.59810284,3219.5,3218.6,16.07483625]
[1768785188121,3.59810284,3219.5,3218.6,12.96795102]
[1768785188319,3.59810284,3219.5,3218.1,12.96795102]
[1768785188320,12.28811521,3219.4,3218.1,12.96795102]
[1768785188549,12.28811521,3219.4,3218.1,16.07534641]
[1768785188729,12.28811521,3219.2,3218.1,16.07534641]
[1768785188892,12.28811521,3219.2,3218.1,12.96795102]
[1768785189221,12.28811521,3219.4,3218.3,12.96795102]
[1768785189520,12.28811521,3219.4,3218.5,3.10702967]
[1768785189821,3.10626533,3219.3,3218.3,12.96795102]
[1768785190026,1.85005753,3219.2,3218.4,0.002]
[1768785191339,14.13817274,3219.2,3218.4,0.002]
[1768785191819,3.59850825,3219.1,3218.4,0.002]
[1768785192029,0.492,3219.1,3218.4,0.002]
[1768785192229,3.59846018,3219.1,3218.4,0.002]
[1768785192527,1.77366329,3219.0,3218.4,0.002]
[1768785193227,12.28811521,3219.0,3218.0,0.002]
[1768785193429,12.28811521,3218.8,3217.5,0.002]
[1768785193922,12.28811521,3218.6,3217.5,0.002]
[1768785194441,12.28811521,3218.4,3217.5,0.002]
[1768785194644,12.28811521,3218.4,3217.3,0.486]
[1768785195146,12.78011521,3218.4,3217.3,0.486]
[1768785195516,12.78011521,3218.4,3217.3,13.45395102]
[1768785195907,15.39534573,3218.3,3217.3,16.56211021]
[1768785196139,20.40203351,3218.3,3217.3,13.45395102]
[1768785196358,20.40203351,3218.3,3217.4,12.96795102]
[1768785196359,1.89945726,3218.3,3217.4,12.96795102]
[1768785196539,18.50243323,3218.4,3217.4,12.96795102]
[1768785197042,18.50243323,3218.4,3217.3,0.486]
[1768785197043,12.28811521,3218.3,3217.3,0.486]
[1768785198027,12.28811521,3218.3,3217.3,3.59417408]
[1768785198234,12.28811521,3218.1,3217.3,3.59417408]
[1768785199153,12.28811521,3218.1,3217.3,0.486]
[1768785199452,12.28811521,3217.9,3217.3,0.486]
[1768785200345,18.50351467,3217.9,3217.3,0.486]
[1768785200661,15.39581494,3217.9,3217.3,0.486]
[1768785201034,18.50351467,3217.9,3217.3,0.486]
[1768785201267,15.39581494,3217.9,3217.3,0.486]
[1768785201562,2.03536322,3217.8,3217.3,0.486]
[1768785202354,5.14310239,3217.8,3217.6,0.002]
[1768785202558,2.03536322,3217.8,3217.6,0.002]
[1768785202768,5.14308045,3217.8,3217.6,0.002]
[1768785203766,5.14308045,3217.8,3216.6,0.487]
[1768785203767,11.86021686,3217.7,3216.6,0.487]
[1768785203972,13.60333643,3217.7,3216.6,0.487]
[1768785204175,3.10790651,3217.6,3216.7,0.03108776]
[1768785204351,3.10790651,3217.6,3216.7,15.99063954]
[1768785205448,14.96812337,3217.6,3216.7,15.99063954]
[1768785205968,14.96812337,3217.6,3216.6,3.59584737]
[1768785205969,11.86021686,3217.5,3216.6,3.59584737]
[1768785206151,11.86021686,3217.5,3216.6,3.59586006]
[1768785206152,3.10805182,3217.5,3216.6,3.59586006]
[1768785206367,11.86021686,3217.4,3216.6,3.59586006]
[1768785206871,11.86021686,3217.4,3216.6,0.002]
[1768785206872,13.66783438,3217.4,3216.6,0.002]
[1768785207039,13.66783438,3217.4,3216.7,0.485]
[1768785207571,13.66783438,3217.4,3216.6,0.487]
[1768785207770,13.66783438,3217.4,3216.6,1e-08]
[1768785207963,11.86021686,3217.2,3216.6,1e-08]
[1768785208364,11.86021686,3217.0,3216.6,1e-08]
[1768785209842,3.10838954,3217.1,3216.6,1e-08]
[1768785210043,17.26768518,3217.3,3216.6,1e-08]
[1768785210044,11.86021686,3217.3,3216.6,1e-08]
[1768785210250,14.96841643,3217.3,3216.6,1e-08]
[1768785210449,1.49684164,3217.2,3216.6,1e-08]
[1768785210977,11.86021686,3217.1,3216.6,1e-08]
[1768785211756,1.49684164,3217.2,3216.6,1e-08]
[1768785212555,4.60515758,3217.2,3216.6,1e-08]
[1768785212948,1.49684164,3217.2,3216.6,1e-08]
[1768785213145,1.49684164,3217.2,3216.3,6.22028898]
[1768785213146,12.32072401,3217.1,3216.3,0.002]
[1768785213353,12.32072401,3217.1,3215.7,0.002]
[1768785213354,11.86021686,3217.0,3216.1,0.485]
[1768785213757,11.86021686,3217.0,3216.9,0.002]
[1768785213979,11.86021686,3217.0,3216.1,0.485]
[1768785214178,6.21677908,3217.1,3215.7,3.11171913]
[1768785214179,11.86021686,3216.8,3216.5,0.002]
[1768785214376,1.80769959,3216.9,3215.7,0.002]
[1768785214377,11.86021686,3216.6,3215.7,0.002]
[1768785214678,11.86021686,3216.6,3216.1,0.483]
[1768785215185,11.86021686,3216.6,3215.7,0.002]
[1768785215680,11.86021686,3216.6,3215.3,0.002]
[1768785215884,11.86021686,3216.4,3215.5,0.485]
[1768785216196,11.86021686,3216.4,3215.3,0.002]
[1768785216367,11.86021686,3216.2,3215.4,0.485]
[1768785217579,11.86021686,3216.2,3215.3,0.002]
[1768785217778,11.86021686,3216.2,3215.4,0.485]
[1768785218083,1.80785423,3216.1,3215.4,0.485]
[1768785218554,3.10945273,3216.0,3215.4,0.435]
[1768785219278,17.76144551,3216.1,3215.4,0.435]
[1768785219478,14.65205533,3216.1,3215.4,0.435]
[1768785219685,3.10922691,3216.3,3215.4,15.64031572]
[1768785220209,19.0624136,3216.4,3215.5,12.09528276]
[1768785220385,19.0624136,3216.4,3215.3,0.002]
[1768785220386,12.8442011,3216.3,3215.3,0.002]
[1768785220586,12.8442011,3216.3,3215.6,0.485]
[1768785220900,12.8442011,3216.1,3215.6,0.485]
[1768785221560,13.48286265,3216.1,3215.6,0.485]
[1768785222300,13.48286265,3216.1,3215.3,3.11210961]
[1768785222301,13.48286265,3216.1,3215.4,3.11001263]
[1768785222458,13.48286265,3216.1,3215.5,0.485]
[1768785222870,16.59227136,3216.1,3215.5,0.485]
[1768785223072,3.74807026,3216.1,3215.5,0.485]
[1768785223893,0.63866155,3216.1,3215.5,0.485]
[1768785224183,3.10931743,3216.2,3215.5,3.59492029]
[1768785224384,3.10931743,3216.2,3215.5,0.485]
[1768785225658,15.9533638,3216.3,3215.4,15.20528873]
[1768785225854,15.9543638,3216.3,3215.5,0.485]
[1768785226181,15.9543638,3216.3,3215.5,3.59488003]
[1768785226484,15.9543638,3216.3,3215.5,12.58028276]
[1768785226485,17.8607075,3216.3,3215.5,12.58028276]
[1768785226786,20.9698702,3216.3,3215.5,12.58028276]
[1768785226958,12.8442011,3216.2,3215.4,3.10999625]
[1768785227155,12.8442011,3216.2,3215.5,0.485]
[1768785229297,3.10935605,3216.1,3215.5,0.485]
[1768785229496,3.10935605,3216.1,3215.3,12.09728276]
[1768785229497,12.8442011,3216.0,3215.3,12.09728276]
[1768785229656,12.8442011,3216.0,3215.6,0.485]
[1768785230052,12.8442011,3216.0,3215.3,0.002]
[1768785230266,12.8442011,3216.0,3215.2,0.002]
[1768785230512,12.8442011,3215.8,3215.3,0.485]
[1768785230800,12.8442011,3215.8,3215.2,0.002]
[1768785231000,12.8442011,3215.8,3215.3,0.485]
[1768785231312,15.95394392,3215.7,3215.2,0.002]
[1768785231498,19.06368674,3215.7,3215.2,0.002]
[1768785231804,14.75056977,3215.6,3215.2,0.002]
[1768785231978,14.75056977,3215.6,3215.1,0.485]
[1768785232175,14.75056977,3215.6,3214.8,0.485]
[1768785233110,14.75056977,3215.6,3214.7,0.486]
[1768785233404,12.93351395,3215.4,3214.7,0.486]
[1768785233578,12.93351395,3215.2,3214.7,0.486]
[1768785234607,1.91533864,3215.3,3214.7,0.486]
[1768785234966,14.84885259,3215.3,3214.7,0.486]
[1768785235168,3.11022642,3215.2,3214.7,0.486]
[1768785235364,16.04374037,3215.2,3214.7,0.486]
[1768785235689,19.15396679,3215.2,3214.7,0.486]
[1768785235868,18.15066733,3215.2,3214.7,0.486]
[1768785236995,15.04044091,3215.2,3214.7,0.486]
[1768785238104,15.04044091,3215.2,3214.7,0.484]
[1768785239006,18.15068005,3215.2,3214.7,0.484]
[1768785239704,12.93351395,3215.1,3214.8,0.486]
[1768785239905,1.01039316,3215.1,3214.8,0.486]
[1768785240075,3.11004856,3215.4,3214.8,0.486]
[1768785240276,3.11004856,3215.4,3214.8,12.79879758]
[1768785240791,16.04356251,3215.4,3214.8,12.79879758]
[1768785240988,16.04356251,3215.4,3214.8,0.486]
[1768785241705,12.93351395,3215.3,3214.8,0.486]
[1768785241908,3.10997886,3215.5,3214.8,12.79879758]
[1768785242083,12.93451395,3215.7,3214.9,12.31279758]
[1768785242084,0.001,3215.7,3214.9,12.31279758]
[1768785243004,3.11078308,3215.7,3214.9,12.31279758]
[1768785243184,14.84891528,3215.6,3214.8,3.59660093]
[1768785243398,12.93351395,3215.6,3214.8,3.59660093]
[1768785243696,12.93351395,3215.6,3214.8,15.90939851]
[1768785243925,12.93351395,3215.6,3214.6,15.42553501]
[1768785244098,12.93351395,3215.5,3214.9,0.486]
[1768785244292,0.001,3215.7,3215.0,12.31279758]
[1768785244987,3.11022735,3216.3,3215.1,12.31279758]
[1768785245500,3.10873725,3216.8,3215.2,12.31279758]
[1768785245501,16.04222053,3216.8,3215.2,12.31279758]
[1768785245708,16.04222053,3216.8,3214.9,12.92804809]
[1768785245709,3.10870658,3216.8,3215.4,12.31279758]
[1768785245878,3.10862366,3216.9,3215.4,12.31279758]
[1768785246081,3.10862366,3216.9,3215.6,12.31279758]
[1768785246290,16.04202868,3217.0,3215.8,12.31279758]
[1768785246583,0.494,3217.6,3215.8,12.31279758]
[1768785246584,12.93351395,3217.3,3215.8,12.31279758]
[1768785246889,12.93451395,3217.6,3215.8,12.31279758]
[1768785247079,12.93351395,3217.5,3216.0,12.31279758]
[1768785247282,12.93351395,3217.3,3216.1,0.486]
[1768785247512,12.93351395,3217.3,3216.2,0.486]
[1768785248280,12.93351395,3217.1,3216.2,0.486]
[1768785249089,3.10829292,3217.2,3216.3,12.31279758]
[1768785249491,19.15009979,3217.2,3216.3,12.31279758]
[1768785249685,14.84852393,3217.1,3216.3,12.31279758]
[1768785250281,1.91500998,3217.1,3216.5,12.31279758]
[1768785250483,3.1080031,3217.5,3216.5,12.31279758]
[1768785251107,16.04151705,3217.5,3216.5,12.31279758]
[1768785251591,19.14952015,3217.5,3216.5,12.31279758]
[1768785251915,12.93351395,3217.4,3216.2,12.31279758]
[1768785252115,14.84856597,3217.4,3216.6,0.486]
[1768785252322,12.93351395,3217.2,3216.6,0.486]
[1768785254089,12.93351395,3217.2,3216.3,15.42191713]
[1768785254288,1.91499066,3217.1,3216.4,0.486]
[1768785254789,5.02341919,3217.1,3216.4,12.79879758]
[1768785255004,3.10842853,3217.1,3216.4,12.79879758]
[1768785255299,3.10842853,3217.1,3216.5,12.31279758]
[1768785255523,3.1082404,3217.3,3216.5,12.31279758]
[1768785255918,6.2164808,3217.3,3216.5,12.31279758]
[1768785256220,6.2164808,3217.3,3216.4,0.486]
[1768785256221,12.93351395,3217.1,3216.4,0.486]
[1768785256933,6.21697232,3217.0,3216.4,0.486]
[1768785257228,3.10848616,3217.0,3216.4,0.486]
[1768785258324,6.21697232,3217.0,3216.4,0.486]
[1768785259589,3.10848616,3217.0,3216.4,0.486]
[1768785259786,1.91504137,3216.9,3216.4,0.486]
[1768785260235,0.62164808,3217.2,3216.5,12.31279758]
[1768785260419,3.72994997,3217.2,3216.5,12.31279758]
[1768785261400,3.72994997,3217.2,3216.5,15.42168466]
[1768785261617,0.62164808,3217.2,3216.5,15.42168466]
[1768785261997,3.72999124,3217.2,3216.5,15.42168466]
[1768785262418,0.001,3216.9,3216.5,12.31279758]
[1768785263836,0.001,3216.9,3216.4,0.486]
[1768785264259,1.25105194,3216.9,3216.4,0.486]
[1768785264454,0.001,3216.9,3216.5,15.23243765]
[1768785264772,0.001,3216.9,3216.6,12.12347507]
[1768785265123,0.001,3217.6,3216.7,12.12347507]
[1768785265371,0.001,3217.6,3216.9,12.12347507]
[1768785265372,3.1080588,3217.5,3216.9,12.12347507]
[1768785265539,4.66891662,3217.5,3216.9,12.12347507]
[1768785266447,1.56085782,3217.5,3216.9,12.12347507]
[1768785266621,4.6688797,3217.5,3216.9,12.12347507]
[1768785266828,1.56085782,3217.5,3216.9,15.23200338]
[1768785267228,4.66886596,3217.5,3216.9,12.12347507]
[1768785267555,1.56085782,3217.5,3216.9,15.23200323]
[1768785268623,1.56085782,3217.5,3216.9,15.23202681]
[1768785270427,1.56085782,3217.5,3216.9,12.12347507]
[1768785270959,1.56085782,3217.5,3216.9,15.2320427]
[1768785272640,1.56085782,3217.5,3216.6,12.12347507]
[1768785272641,12.49951937,3217.4,3216.6,12.12347507]
[1768785272833,12.96649793,3217.4,3216.7,0.486]
[1768785273336,12.96649793,3217.4,3216.7,12.60947507]
[1768785273656,12.96649793,3217.4,3216.7,0.486]
[1768785273859,14.41777019,3217.3,3216.7,0.486]
[1768785274034,12.49951937,3217.1,3216.8,0.486]
[1768785274437,12.49951937,3217.1,3216.8,0.488]
[1768785275036,0.001,3217.2,3216.8,0.488]
[1768785275441,12.50051937,3217.2,3216.8,0.488]
[1768785275638,12.49951937,3217.0,3216.8,0.488]
[1768785275849,12.49951937,3217.0,3216.8,0.47805346]
[1768785276238,15.60802638,3217.0,3216.8,0.47805346]
[1768785276940,12.49951937,3217.0,3216.8,0.47805346]
[1768785277674,2.06352494,3217.1,3216.8,0.47805346]
[1768785278178,0.001,3217.2,3216.8,0.47805346]
[1768785279663,12.69390214,3217.2,3216.8,0.47805346]
[1768785279860,12.69390214,3217.2,3216.5,0.002]
[1768785280066,3.10838954,3217.1,3216.5,0.488]
[1768785280380,12.69290214,3217.0,3216.5,0.488]
[1768785280547,14.27303131,3216.9,3216.5,0.002]
[1768785280875,14.27303131,3216.9,3215.7,12.56439057]
[1768785281079,14.27303131,3216.9,3215.8,3.59563486]
[1768785281370,14.27303131,3216.9,3215.8,0.486]
[1768785281968,14.27303131,3216.9,3215.5,12.56439057]
[1768785282172,12.69290214,3216.5,3215.6,0.486]
[1768785282377,12.69290214,3216.5,3215.4,0.002]
[1768785282378,12.69290214,3216.5,3215.7,0.486]
[1768785283451,12.69290214,3216.5,3215.4,0.002]
[1768785283664,12.69290214,3216.5,3215.6,0.486]
[1768785284254,6.21813206,3216.4,3215.6,0.486]
[1768785284459,12.69290214,3216.5,3215.6,13.05039057]
[1768785284661,12.69290214,3216.7,3215.8,12.56439057]
[1768785284857,12.69290214,3216.7,3215.9,12.56439057]
[1768785285871,0.001,3217.2,3215.9,12.56439057]
[1768785285872,3.10875058,3216.8,3215.9,12.56439057]
[1768785286046,15.80165272,3216.8,3216.0,0.486]
[1768785286246,16.19248634,3216.8,3216.0,0.486]
[1768785286442,0.001,3217.2,3216.1,12.56439057]
[1768785286646,0.001,3217.2,3216.3,12.56439057]
[1768785287183,0.001,3216.9,3216.3,12.56439057]
[1768785288376,0.001,3216.9,3216.4,3.10906603]
[1768785288675,0.001,3216.9,3216.5,0.486]
[1768785289176,0.001,3216.9,3216.5,14.9772508]
[1768785289885,0.001,3216.9,3216.5,1.92686023]
[1768785290084,0.001,3216.9,3216.0,0.002]
[1768785290085,12.69390214,3216.9,3216.0,0.002]
[1768785290244,12.69390214,3216.9,3216.2,3.10925193]
[1768785290969,12.69390214,3216.9,3216.2,6.2185113]
[1768785290970,0.001,3216.9,3216.2,6.2185113]
[1768785291147,0.001,3216.9,3216.3,12.56439057]
[1768785291586,0.001,3216.9,3216.3,14.49128076]
[1768785291748,0.001,3217.2,3216.4,12.56439057]
[1768785291944,12.69290214,3217.1,3216.3,1.92689019]
[1768785292143,12.69290214,3217.1,3216.5,0.486]
[1768785292447,15.80134811,3217.1,3216.5,0.486]
[1768785292648,14.65412565,3217.0,3216.5,0.436]
[1768785292883,1.8910641,3217.0,3216.5,3.54492349]
[1768785293047,0.001,3217.2,3216.6,11.71484379]
[1768785294552,0.001,3217.2,3216.5,0.436]
[1768785294753,0.001,3217.2,3216.5,3.54496882]
[1768785295384,0.001,3217.2,3216.5,3.10896882]
[1768785295573,0.001,3217.2,3216.6,3.59486796]
[1768785295968,0.001,3217.2,3216.6,0.486]
[1768785296195,0.001,3217.2,3216.3,3.109136]
[1768785296196,12.76306155,3217.1,3216.3,0.486]
[1768785296550,12.76306155,3216.9,3216.3,0.486]
[1768785296964,12.76306155,3216.9,3216.0,3.11144391]
[1768785296965,12.76306155,3216.9,3216.0,0.002]
[1768785297164,12.76306155,3216.9,3216.1,0.486]
[1768785297482,12.76306155,3216.9,3216.2,3.10919721]
[1768785297800,14.66105562,3216.9,3216.1,12.20084379]
[1768785298177,14.66105562,3216.9,3216.0,3.11141279]
[1768785298178,14.66105562,3216.9,3216.2,0.486]
[1768785298678,3.10867943,3216.8,3216.2,0.486]
[1768785298881,3.10867943,3216.8,3216.3,0.486]
[1768785298882,6.21735886,3216.8,3216.3,0.486]
[1768785299084,12.76306155,3216.7,3216.3,0.486]
[1768785299257,1.63622895,3216.6,3216.4,0.002]
[1768785299458,1.63722895,3216.6,3216.4,0.002]
[1768785299658,1.63722895,3216.6,3216.3,0.486]
[1768785300280,0.001,3216.6,3216.3,0.486]
[1768785300990,0.001,3216.6,3215.4,0.002]
[1768785300991,12.76306155,3216.5,3215.4,0.002]
[1768785301178,12.76306155,3216.5,3215.4,1e-08]
[1768785301378,13.25706155,3216.5,3215.5,0.486]
[1768785301601,13.25706155,3216.5,3215.2,0.488]
[1768785301602,12.76306155,3216.3,3215.2,0.488]
[1768785301898,12.76306155,3216.3,3215.0,0.002]
[1768785302097,12.76306155,3216.1,3215.0,11.71684379]
[1768785302280,12.76306155,3216.1,3215.0,0.002]
[1768785302676,12.76306155,3216.1,3215.0,0.03310419]
[1768785302861,0.494,3216.2,3215.0,0.03310419]
[1768785302862,6.21929224,3215.8,3215.0,0.03310419]
[1768785303259,6.21929224,3215.8,3215.0,0.002]
[1768785303481,12.76306155,3215.7,3215.0,0.002]
[1768785304695,3.60364612,3215.8,3215.0,0.002]
[1768785304904,12.76306155,3215.9,3215.0,3.11235821]
[1768785305124,13.20658763,3215.8,3215.0,0.002]
[1768785306862,15.87280437,3215.7,3215.0,0.002]
[1768785307067,6.21948564,3215.7,3215.0,0.002]
[1768785307319,12.76306155,3215.6,3215.0,0.002]
[1768785307478,1.94260733,3215.6,3215.0,11.71684379]
[1768785307667,3.55319735,3215.8,3215.0,11.71684379]
[1768785307668,3.10967127,3215.8,3215.0,11.71684379]
[1768785308002,15.87273282,3215.8,3215.0,0.002]
[1768785308782,18.98240409,3215.8,3215.0,0.002]
[1768785309009,12.76306155,3215.8,3215.0,0.002]
[1768785309222,15.8727139,3215.8,3215.0,11.71684379]
[1768785309521,0.001,3216.6,3215.0,13.24847727]
[1768785309522,12.76306155,3216.1,3215.0,13.24847727]
[1768785309848,0.001,3216.6,3215.0,13.62947977]
[1768785309849,3.10896937,3216.5,3215.0,13.62947977]
[1768785309980,0.495,3216.6,3215.2,11.71484379]
[1768785309981,0.001,3216.6,3215.2,11.71484379]
[1768785310322,0.001,3216.6,3215.4,11.71484379]
[1768785310509,0.001,3216.6,3215.6,11.71484379]
[1768785310714,0.001,3216.6,3215.8,11.71484379]
[1768785310941,0.001,3216.6,3215.3,1.66257506]
[1768785310942,0.001,3216.6,3216.1,3.10935605]
[1768785311431,0.001,3216.6,3216.0,14.82427269]
[1768785311660,0.001,3216.6,3216.0,16.35590617]
[1768785311825,0.001,3216.6,3216.1,11.71484379]
[1768785312402,3.6033474,3217.2,3216.0,7.75051511]
[1768785312403,0.001,3217.2,3216.2,11.71484379]
[1768785312755,0.001,3217.2,3216.2,12.47872379]
[1768785312906,0.001,3217.2,3216.4,11.71484379]
[1768785313109,0.001,3217.2,3216.6,11.71484379]
[1768785314941,0.001,3217.2,3216.7,6.21755214]
[1768785315103,0.001,3217.6,3216.8,11.71484379]
[1768785316023,0.001,3217.6,3217.0,11.71484379]
[1768785317131,0.001,3217.6,3217.1,14.82323333]
[1768785317437,12.76306155,3218.6,3217.2,11.71484379]
[1768785317602,12.76306155,3218.6,3217.3,12.20184379]
[1768785317800,15.86983865,3218.8,3217.3,12.20184379]
[1768785318005,15.86982856,3218.8,3217.3,12.20184379]
[1768785318444,12.76306155,3218.7,3217.3,12.20184379]
[1768785318608,14.66072111,3218.6,3217.5,11.71484379]
[1768785318807,14.66072111,3218.6,3217.4,1.17557506]
[1768785319124,14.66072111,3218.6,3217.6,0.487]
[1768785319507,12.76306155,3218.4,3217.6,0.487]
[1768785319703,12.76306155,3218.4,3217.2,11.71484379]
[1768785320002,12.76306155,3218.4,3217.6,0.487]
[1768785320215,12.76306155,3218.4,3217.5,0.487]
[1768785320539,12.76306155,3218.2,3217.5,0.487]
[1768785320739,12.76306155,3218.2,3217.1,14.82321782]
[1768785320924,12.76306155,3218.2,3217.2,0.487]
[1768785321844,1.89771364,3218.3,3216.9,3.10850164]
[1768785321845,12.76306155,3218.0,3216.9,3.10850164]
[1768785322027,12.76306155,3218.0,3217.0,0.487]
[1768785322232,6.21484726,3218.1,3217.0,0.487]
[1768785322233,12.76306155,3217.8,3217.0,0.487]
[1768785322431,1.89779088,3217.9,3217.0,12.20184379]
[1768785322808,1.89879088,3217.9,3217.0,12.20184379]